Cogmind - Beta 11 @@@ ROGUE MODE // 2022.04.14 @ 19:08:04 Player: Red Box Result: Destroyed by as-38292 with Assembled Rifle Performance ------------- Evolutions (0) 0 Regions Visited (2) 400 Robots Destroyed (19) 95 Value Destroyed (361) 361 Prototype IDs (3) 60 Alien Tech Used (0) 0 Bonus (0) 0 TOTAL SCORE: 916 Bonus ------- None Cogmind --------- Core Integrity 0/250 Matter 300/300 Energy 20/100 System Corruption 0% Temperature Cool (67) Movement Rolling (140) Ox4 Location -10/Mines Parts ------- > --- POWER (1) -------- (None) > --- PROPULSION (2) --- Wheel > --- UTILITY (2) ------ High-capacity Storage Unit Terrain Scanner > --- WEAPON (2) ------- EM Pulse Gun EM Pulse Gun > --- INVENTORY (20) --- Ion Engine Light Treads Light Treads Wheel Compact Wheel High-capacity Matter Pod (200) Sensor Array Light Armor Plating EM Pulse Gun Medium Laser Small Laser Small Laser Beam Cannon Assault Rifle Hammer Peak State ------------ > --- POWER ------------ Light Ion Engine > --- PROPULSION ------- Aluminum Leg Aluminum Leg > --- UTILITY ---------- High-capacity Storage Unit Improved Terrain Scanner > --- WEAPON ----------- Medium Laser Small Laser > --- INVENTORY -------- Light Ion Engine Light Treads Light Treads Wheel Wheel Compact Wheel High-capacity Matter Pod EM Pulse Gun EM Pulse Gun Mining Laser [Rating: 10] Favorites ----------- Power Light Ion Engine Engine Light Ion Engine Propulsion Wheel Leg Aluminum Leg Wheel Wheel Utility High-capacity Storage Unit Device Terrain Scanner Storage High-capacity Storage Unit Weapon EM Pulse Gun Energy Gun EM Pulse Gun Special Weapon Mining Laser Impact Weapon Hammer Build | -11 -10 -10 ------- Run | Scr Mat Min Slots Evolved . | . . . Power . | . . . Propulsion . | . . . Utility . | . . . Weapon . | . . . Parts Attached 27 | 7 19 1 Power 3 | 1 2 . Engine 3 | 1 2 . Core . | . . . Reactor . | . . . Propulsion 5 | 2 3 . Treads . | . . . Leg 2 | 2 . . Wheel 3 | . 3 . Hover . | . . . Flight . | . . . Utility 6 | 2 4 . Device 4 | 1 3 . Storage 2 | 1 1 . Processor . | . . . Hackware . | . . . Protection . | . . . Artifact . | . . . Weapon 13 | 2 10 1 Energy Gun 9 | 2 6 1 Energy Cannon . | . . . Ballistic Gun . | . . . Ballistic Cannon . | . . . Launcher . | . . . Special Weapon 2 | . 2 . Impact Weapon 2 | . 2 . Slashing Weapon . | . . . Piercing Weapon . | . . . Special Melee Weapon . | . . . Unidentified Prototypes . | . . . Parts Lost 8 | . 6 2 Power 2 | . 1 1 Propulsion 3 | . 2 1 Utility 2 | . 2 . Weapon 1 | . 1 . Highest Loss Streak 4 | . 4 2 To Critical Strikes . | . . . Average Slot Usage (%) 98 | . 98 98 Engine 13 | . 13 13 Leg 12 | . 14 . Wheel 15 | . 13 27 Device 13 | . 13 14 Storage 14 | . 14 14 Energy Gun 23 | . 23 27 Impact Weapon 3 | . 3 . Naked Turns . | . . . Heaviest Build 50 | 12 50 48 Greatest Support 20 | 20 20 20 Greatest Overweight (x) 4 | 1 2 4 Average Overweight (x) 1 | . 1 2 Largest Inventory Capacity 20 | 8 20 20 Average Capacity 19 | 7 19 20 Most Carried 16 | 7 16 15 Average Carried 12 | 4 12 13 Final Capacity 20 | 8 20 20 Final Carried 15 | 7 13 15 Class Distribution -------------------- 96% | Mutant 3% | Scavenger-Mutant Dominant Class ---------------- Mutant | -10/Materials Mutant | -10/Mines Resources | -11 -10 -10 ----------- Run | Scr Mat Min Matter Collected 650 | 253 368 29 Remotely . | . . . Salvage Created 610 | 84 491 35 Parts 27 | 4 23 . Haulers Intercepted 1 | . 1 . Recyclers Shooed 2 | 1 1 . Parts Field Recycled . | . . . Retrieved Matter . | . . . Parts Self-Destructed . | . . . Prevented . | . . . Kills | -11 -10 -10 ------- Run | Scr Mat Min Combat Hostiles Destroyed 15 | . 13 2 Guns 15 | . 13 2 Classes Destroyed 7 | 2 4 1 Tunneler 1 | 1 . . Hauler 1 | . 1 . Recycler 1 | 1 . . Watcher 3 | . 3 . Swarmer 6 | . 6 . Grunt 7 | . 7 . Assembled 2 | . . 2 Best Kill Streak 4 | 1 4 2 Combat Bots Only 3 | . 3 2 Max Kills in Single Turn 1 | 1 1 1 Gunslinging . | . . . Exploded . | . . . Melee . | . . . Uniques/NPCs Destroyed . | . . . Combat | -11 -10 -10 -------- Run | Scr Mat Min Damage Taken 1026 | . 770 256 Core 258 | . 176 82 Absorbed by Shields . | . . . Regen/Repaired (Parts) 65 | . 65 . Core Remaining (%) 100 | 100 . . Volleys Fired 73 | 11 53 9 Largest 2 | 2 2 2 Hottest 150 | 90 150 80 Shots Fired 143 | 22 103 18 Gun 140 | 22 100 18 Cannon . | . . . Launcher . | . . . Special 3 | . 3 . Kinetic . | . . . Thermal 100 | 22 78 . Explosive . | . . . Electromagnetic 43 | . 25 18 Robot Hit Streak 10 | 8 10 4 Robot Miss Streak 4 | 2 4 3 Penetration Max . | . . . Secondary Targets 4 | . 2 2 Max Gunslinging Chain 1 | . 1 1 Shots Hit Robots 85 | 16 59 10 Core Hits 33 | 3 24 6 Critical Kills . | . . . Critical Parts Destroyed . | . . . Critical Strikes 9 | . 9 . Burn 8 | . 8 . Corrupt 1 | . 1 . Melee Attacks 41 | . 41 . Impact 41 | . 41 . Slashing . | . . . Piercing . | . . . Sneak Attacks . | . . . Combat Hostiles . | . . . Follow-up Attacks . | . . . Damage Inflicted 1120 | 189 824 107 Guns 1096 | 189 800 107 Cannons . | . . . Explosions . | . . . Melee . | . . . Ramming . | . . . Kinetic . | . . . Thermal 877 | 189 688 . Explosive . | . . . Electromagnetic 243 | . 136 107 Impact . | . . . Slashing . | . . . Piercing . | . . . Highest Corruption . | . . . Average Corruption . | . . . Corruption Purged . | . . . Corruption Blocked . | . . . Overload Shots . | . . . Overflow Damage . | . . . Projectiles . | . . . Explosions . | . . . Melee . | . . . Knockbacks . | . . . Impact . | . . . Kinetic . | . . . Secondary . | . . . Self-Inflicted Damage . | . . . Shots . | . . . Rammed . | . . . Targets Rammed . | . . . Kicked . | . . . Crushed . | . . . Highest Temperature 306 | 154 306 85 Average Temperature 62 | 57 65 48 Received Heat Transfer 260 | . 240 20 Effects 2 | . 2 . Interference 2 | . 2 . Siege Activations . | . . . Robots Corrupted . | . . . Combat Hostiles . | . . . Parts Fried 1 | . 1 . Impact Corruptions . | . . . Robots Melted . | . . . Combat Hostiles . | . . . Parts Melted 3 | . 3 . Heat Transferred 2898 | 484 2414 . Parts Sabotaged . | . . . Parts Stolen . | . . . Parts Stripped . | . . . Power Chain Reactions . | . . . Missiles Intercepted . | . . . Alert | -11 -10 -10 ------- Run | Scr Mat Min Peak Influence 114 | 10 114 24 Initial 24 | . 6 24 Average 39 | 4 44 22 Maximum Alert Level . | . . . Low Security (%) 100 | 100 100 100 Level 1 . | . . . Level 2 . | . . . Level 3 . | . . . Level 4 . | . . . Level 5 . | . . . High Security . | . . . Max Security . | . . . Squads Dispatched 4 | . 4 . Investigation 2 | . 2 . Extermination . | . . . Reinforcement 2 | . 2 . Assault . | . . . Garrison . | . . . Intercept . | . . . Searches Triggered . | . . . Construction Impeded . | . . . Haulers Reinforced . | . . . Active Scanning Responses . | . . . Cargo Convoy Interrupts . | . . . Stealth | -11 -10 -10 --------- Run | Scr Mat Min Distress Signals 1 | . 1 . Communications Jammed . | . . . Distress Signals . | . . . Times Spotted 36 | . 22 14 Peak Tracking Total 15 | . 5 15 Tactical Retreats . | . . . Traps | -11 -10 -10 ------- Run | Scr Mat Min Traps Triggered 1 | . 1 . Indirectly . | . . . Trap Hack Attempts . | . . . Triggered . | . . . Disarmed . | . . . Reprogrammed . | . . . Reused . | . . . Traps Extracted . | . . . Installed . | . . . Triggered . | . . . Machines | -11 -10 -10 ---------- Run | Scr Mat Min Machines Disabled . | . . . Max in Single Turn . | . . . Machines Sabotaged . | . . . Garrisons Compromised . | . . . Overloaded Fab Kills . | . . . Hacking | -11 -10 -10 --------- Run | Scr Mat Min Machines Accessed 8 | . 8 . Terminals 5 | . 5 . Fabricators . | . . . Repair Stations 1 | . 1 . Recycling Units 2 | . 2 . Scanalyzers . | . . . Garrison Access . | . . . Total Hacks 35 | . 35 . Successful 23 | . 23 . Failed 12 | . 12 . Catastrophic . | . . . Database Lockouts . | . . . Manual 22 | . 22 . Terminals 25 | . 25 . Fabricators . | . . . Repair Stations 4 | . 4 . Recycling Units 6 | . 6 . Scanalyzers . | . . . Garrison Access . | . . . Terminal Hacks 8 | . 8 . Robot Analysis 3 | . 3 . Prototype ID Bank 2 | . 2 . Terminal Index 1 | . 1 . Locate Traps 1 | . 1 . Hauler Manifests 1 | . 1 . Fabricator Hacks . | . . . Repair Station Hacks 4 | . 4 . Scan Component 2 | . 2 . Repair 2 | . 2 . Recycling Unit Hacks 2 | . 2 . Retrieve Components 2 | . 2 . Scanalyzer . | . . . Garrison Access Hacks . | . . . Unauthorized Hacks 9 | . 9 . Terminals 7 | . 7 . Track 2 | . 2 . Assimilate 2 | . 2 . Botnet 2 | . 2 . Operators 1 | . 1 . Fabricators . | . . . Repair Stations . | . . . Recycling Units 2 | . 2 . Reject 2 | . 2 . Scanalyzers . | . . . Garrison Access . | . . . Data Cores Recovered . | . . . Used . | . . . Hacking Detections 7 | . 7 . Full Trace Events . | . . . Feedback Events . | . . . Feedback Blocked . | . . . Robot Schematics Acquired . | . . . Robots Built . | . . . Authchips . | . . . Time . | . . . Total Robot Build Rating . | . . . Part Schematics Acquired . | . . . Parts Built . | . . . Authchips . | . . . Time . | . . . Total Part Build Rating . | . . . Parts Repaired 2 | . 2 . Time 52 | . 52 . Parts Recycled . | . . . Recycled Matter . | . . . Retrieved Matter . | . . . Retrieved Components 3 | . 3 . Parts Scanalyzed . | . . . Part Schematics Acquired . | . . . Parts Damaged . | . . . Bothacking | -11 -10 -10 ------------ Run | Scr Mat Min Used RIF Installer . | . . . Robots Hacked . | . . . Non-combat . | . . . Combat . | . . . Robot Hacks Applied . | . . . Relay Couplers Released . | . . . Fabnet Peak Effective % . | . . . Robots Rewired . | . . . Allies Hacked . | . . . Hacks Repelled . | . . . Allies | -11 -10 -10 -------- Run | Scr Mat Min Total Allies 1 | . 1 . Largest Group 1 | . 1 1 Highest-Rated Group 10 | . 10 9 Highest-Rated Ally 10 | . 10 9 Total Orders 2 | . 2 . STAY 1 | . 1 . FOLLOW 1 | . 1 . Ally Attacks . | . . . Total Damage . | . . . Kills . | . . . Allies Corrupted . | . . . Allies Melted . | . . . Intel | -11 -10 -10 ------- Run | Scr Mat Min Robot Analysis Total 3 | . 3 . Derelict Logs Recovered 2 | . . 2 Drone Launches . | . . . Drone Recoveries . | . . . Exploration | -11 -10 -10 ------------- Run | Scr Mat Min Turns Passed 2717 | 146 2240 331 Spaces Moved 1180 | 82 827 271 Core 8 | 8 . . Treads . | . . . Legs 469 | 74 395 . Wheels 703 | . 432 271 Hover . | . . . Flight . | . . . Fastest Speed 50 | 50 110 110 Average Speed 159 | 117 179 110 Slowest Speed 260 | 190 260 140 Overloaded Moves . | . . . Propulsion Burnouts . | . . . Robots Hopped . | . . . Cave-ins Triggered . | . . . Exploration Rate (%) 51 | 5 77 71 Regions Visited 2 Branch Regions 1 Pre-discovered Areas . | . . . Known Exits Taken . | . . . Unknown Exits Taken 2 | 1 1 . Scrap Searched 1 | . . 1 Spaces Dug 10 | . 10 . Terrain Destroyed 11 | . 11 . Melee 9 | . 9 . Projectile 2 | . 2 . AOE . | . . . Terrain Rammed . | . . . Walls Destroyed . | . . . Machines Disabled . | . . . Actions | -11 -10 -10 --------- Run | Scr Mat Min Total 1788 | 106 1396 286 Wait 441 | . 440 1 Move 1178 | 81 826 271 Hop . | . . . Pick Up 22 | 7 12 3 Fast Attach 11 | 7 4 . Attach 6 | . 6 . Detach 1 | . 1 . Swap 10 | . 9 1 Drop 5 | . 4 1 Fire 73 | 11 53 9 Melee 41 | . 41 . Ram . | . . . Kick . | . . . Crush . | . . . Escape Stasis . | . . . Rewire . | . . . Trap . | . . . Miscellaneous . | . . . Route ------- -11/Scrapyard -10/Materials (discovered 3 exits: [*Mat x2] / [*Min]) -10/Mines (discovered 1 exit: [*Mat]) History --------- Turn | Location | Event 14 | -11/Scrapyard | Discovered new exit (range 16) 147 | -11/Scrapyard | Entered Materials 317 | -10/Materials | Build established: Mutant 1053 | -10/Materials | Discovered new exit (range 16) 1246 | -10/Materials | Discovered new exit (range 7) 1286 | -10/Materials | Core integrity fell below 50% 1322 | -10/Materials | Lost 4 parts (2n1u1w) 1911 | -10/Materials | Discovered new exit (range 3) 2264 | -10/Materials | Repaired EM Pulse Gun 2292 | -10/Materials | Repaired Wheel 2387 | -10/Materials | Entered Mines 2387 | -10/Mines | Accompanied by 1 ally 2407 | -10/Mines | Discovered new exit (range 10) 2515 | -10/Mines | Learned location of 1 exit from Materials 2576 | -10/Mines | Learned 4 Materials zone layouts 2678 | -10/Mines | Assembled infested the area 2699 | -10/Mines | Core integrity fell below 20% 2718 | -10/Mines | Destroyed by as-38292 with Assembled Rifle Last Messages --------------- 02561_ Searching scrap... 02561_ Found Assault Rifle. 02561_ Found Lgt. Armor Plating. 02561_ Found Signal Interpreter. 02561_ Found 31 Matter. 02561_ Found 29 Matter. 02563_ Acquired Assault Rifle. 02565_ Acquired Lgt. Armor Plating. 02576_ Acquired derelict log, extracted data. Data stored: Materials zone layouts (x4). 02577_ K-01 Serf collects debris. 02678_ ALERT: Infestation in the mines, dispatching Demolisher response squad. 02695_ as-89432 destroyed. 02695_ Switching to secondary target: as-08558. 02696_ Wheel destroyed. 02703_ Lgt. Ion Engine destroyed. 02712_ as-51483 destroyed. 02712_ Switching to secondary target: as-38292. 02715_ Destroyed Asb. F-torch. Map ----- +----------------------------------------------------+ | | | | | | | | | | | | | | | | | | | | | ?????????????????????????????????????????? | | ???????????????????????###???????????????? | | ?????????????????????## ##??????????????? | | ????????????????????# ##?????????????? | | ???????????????????? #?????????????? | | ???????????????#???# ###???????????? | | ??????????????????# ????????????? | | ????????????????## ??????????????? | | ???????????????## ????????????????? | | ?????????#?????? ##????????????????? | | ???????#???????? a ???????????????????? | | ????????????????#aa ?????????????????????? | | ????????????????#a#??????????????????????? | | ??????#?????????#a#???#??????????????????? | | ????????????????#a#??????????????????????? | | ?????????????####@##?????????????????????? | | ???????#???#?# #??????????????????????? | | ?????????????# ##???????#?????????????? | | ?????????????# o ##????????????????????? | | ?????????????## #?#???????????????????? | | ??????????????## #??????#??????????????? | | ?????#??????#?## #?????????????????????? | | ?????????????## #??????? ?????????????? | | ???????????### ##?????????????????????? | | ??????????### ##??????????????????????? | | ???????????## #???????????????????????? | | ??????????## ##??????????????????????? | | ?????????## #?????? ???????????????? | | ?????????# ## #?????????????????????? | | ?????????# #### #?????????????????????? | | ?????????## #???# #????????#????????????? | | ??????????# ##???##?????????????????????? | | ??#???????# ##??????????#???????????????? | | ??????????# ##?????????????????????????? | | ??#??????## #?????????????????????????? | | ?????????# ##??????? ???????????????? | | ?????????# ######## #??????????????? | | ?????????# ##?????????????? | | ????###### ####### ##????????????? | | ???## ## ###???## #???? ???????? | +----------------------------------------------------+ Best States ------------- Heat Dissipation 35 Energy Generation 10 Energy Capacity 250 Matter Stores 300 Matter Capacity 300 Sight Range 16 Robot Scan Range 14 Terrain Scan Range 16 Terrain Scan Density 10 Evasion (%) 55 Item Schematics ----------------- None Robot Schematics ------------------ None Fabricated ------------ Nothing Alien Tech Used ----------------- None Achievements -------------- None Challenges ------------ None Game ------ Seed ElectronCannonRecalibrator Manual? 0 Play Time 00:16:05 Cumulative 293.7 hours Start 2022.04.14 @ 18:43:00 End 2022.04.14 @ 19:08:04 Sessions 1 Manual Loads 0 Difficulty Rogue Special Mode None Game No. 245 Rogue 245 Adventurer 0 Explorer 0 Win Type - Total 0 Types 0/0/0/0/0/0/0/0/0 Lore% 53 Gallery% 59 Achievement% 42 Wizard Run 0 Options --------- ASCII 0 Keyboard 0 Movement Mouse Keybinds 0 Fullscreen 1 Font 16/SmallcapsGlow Map View 75x55 Tactical HUD 1 Map Filters NONE Filters NONE Steam 1 RUN: c6630133-19a6-489d-a5c6-5cb180d11288